[Event "FIDE Open World Rapid 2024"]
[Site "New York"]
[Date "2024.12.27"]
[Round "8.16"]
[White "Sardana, Rishi"]
[Black "Moradiabadi, Elshan"]
[Result "1/2-1/2"]
[ECO "B12"]
[WhiteElo "2466"]
[BlackElo "2512"]
[Annotator "ChessBase"]
[PlyCount "64"]
[EventDate "2024.12.14"]
[EventType "swiss"]
[EventCountry "USA"]
[SourceTitle "playchess.com"]
[Source "ChessBase"]
[SourceQuality "1"]
[TimeControl "900+10"]

1. e4 {[%emt 0:00:59]} c6 {[%emt 0:00:01]} 2. d4 {[%emt 0:00:03]} d5 {[%emt 0:00:01]} 3. e5 {[%emt 0:00:01]} Bf5 {[%emt 0:00:01]} 4. Bd3 {[%emt 0:00:05]} Bxd3 {[%emt 0:00:05]} 5. Qxd3 {[%emt 0:00:01]} e6 {[%emt 0:00:00]} 6. Ne2 {[%emt 0:00:02]} a6 {[%emt 0:00:50]} 7. O-O {[%emt 0:00:05]} c5 {[%emt 0:00:01]} 8. c3 {[%emt 0:00:01]} Nc6 {[%emt 0:00:08]} 9. Nd2 {[%emt 0:00:03]} Nge7 {[%emt 0:00:30]} 10. Nf3 {[%emt 0:00:11]} Nf5 {[%emt 0:00:52]} 11. Nf4 {[%emt 0:02:37]} cxd4 {[%emt 0:01:12]} 12. cxd4 {[%emt 0:00:04]} h5 {[%emt 0:00:04]} 13. g3 {[%emt 0:01:55]} Be7 {[%emt 0:00:49]} 14. h4 {[%emt 0:00:08]} g6 {[%emt 0:00:07]} 15. Be3 {[%emt 0:00:47]} Qb6 {[%emt 0:00:05]} 16. Rfc1 {[%emt 0:00:07]} Kd7 {[%emt 0:00:28]} 17. Rc3 {[%emt 0:00:54]} Bb4 {[%emt 0:00:47]} 18. Rb3 {[%emt 0:01:08]} Nxe3 {[%emt 0:01:10]} 19. Qxe3 {[%emt 0:01:46]} Na5 {[%emt 0:00:01]} 20. Nxd5 {[%emt 0:02:23]} exd5 {[%emt 0:00:05]} 21. e6+ {[%emt 0:00:01]} fxe6 {[%emt 0:00:07]} 22. Ne5+ {[%emt 0:00:03]} Ke8 {[%emt 0:00:38]} 23. Qg5 {[%emt 0:00:44]} Nxb3 {[%emt 0:00:54]} 24. Qxg6+ {[%emt 0:00:04]} Kd8 {[%emt 0:00:04]} 25. Qf6+ {[%emt 0:01:26]} Kc7 {[%emt 0:01:41]} 26. Qg7+ {[%emt 0:00:09]} Kb8 {[%emt 0:00:01]} 27. Nd7+ {[%emt 0:00:42]} Ka7 {[%emt 0:00:02]} 28. Nxb6 {[%emt 0:00:03]} Rag8 {[%emt 0:00:12]} 29. Nc8+ {[%emt 0:01:01]} Ka8 {[%emt 0:00:01]} 30. Nb6+ {[%emt 0:00:19]} Ka7 {[%emt 0:00:00]} 31. Nc8+ {[%emt 0:00:01]} Ka8 {[%emt 0:00:01]} 32. Nb6+ {[%emt 0:00:56]} Ka7 {[%emt 0:00:49]} 1/2-1/2

[Event "FIDE Open World Rapid 2024"]
[Site "New York"]
[Date "2024.12.27"]
[Round "8.17"]
[White "Robson, Ray"]
[Black "Jumabayev, Rinat"]
[Result "1-0"]
[ECO "D37"]
[WhiteElo "2700"]
[BlackElo "2573"]
[Annotator "ChessBase"]
[PlyCount "76"]
[EventDate "2024.12.14"]
[EventType "swiss"]
[EventCountry "USA"]
[SourceTitle "playchess.com"]
[Source "ChessBase"]
[SourceQuality "1"]
[TimeControl "900+10"]

1. d4 {[%emt 0:00:03]} d5 {[%emt 0:00:05]} 2. c4 {[%emt 0:00:04]} e6 {[%emt 0:00:01]} 3. Nc3 {[%emt 0:00:06]} h6 {[%emt 0:00:02]} 4. Nf3 {[%emt 0:00:29]} Nf6 {[%emt 0:00:02]} 5. e3 {[%emt 0:00:14]} Nbd7 {[%emt 0:00:15]} 6. Qc2 {[%emt 0:04:30]} dxc4 {[%emt 0:04:46]} 7. Bxc4 {[%emt 0:00:09]} a6 {[%emt 0:00:01]} 8. a4 {[%emt 0:02:17]} c5 {[%emt 0:00:02]} 9. O-O {[%emt 0:01:10]} Qc7 {[%emt 0:00:47]} 10. b3 {[%emt 0:02:56]} Bd6 {[%emt 0:00:47]} 11. Bb2 {[%emt 0:00:41]} O-O {[%emt 0:02:36]} 12. Rac1 {[%emt 0:00:34]} cxd4 {[%emt 0:01:18]} 13. exd4 {[%emt 0:01:23]} b6 {[%emt 0:00:51]} 14. d5 {[%emt 0:01:29]} e5 {[%emt 0:01:34]} 15. Nh4 {[%emt 0:00:37]} Re8 {[%emt 0:00:51]} 16. Nf5 {[%emt 0:00:06]} Bb7 {[%emt 0:02:24]} 17. Ne4 {[%emt 0:00:33]} Nxe4 {[%emt 0:01:06]} 18. Qxe4 {[%emt 0:00:02]} Nf6 {[%emt 0:00:01]} 19. Qh4 {[%emt 0:00:10]} Qd8 {[%emt 0:00:24]} 20. f4 {[%emt 0:00:14]} Bc5+ {[%emt 0:00:10]} 21. Kh1 {[%emt 0:00:01]} Nxd5 {[%emt 0:00:15]} 22. Qg3 {[%emt 0:00:29]} Qf6 {[%emt 0:00:01]} 23. fxe5 {[%emt 0:00:24]} Qg5 {[%emt 0:00:01]} 24. Qf3 {[%emt 0:00:13]} Rad8 {[%emt 0:00:18]} 25. Rcd1 {[%emt 0:00:05]} Ne3 {[%emt 0:00:24]} 26. Qxb7 {[%emt 0:00:12]} Nxd1 {[%emt 0:00:04]} 27. h4 {[%emt 0:00:16]} Qg4 {[%emt 0:00:20]} 28. Bxf7+ {[%emt 0:00:10]} Kh8 {[%emt 0:00:01]} 29. Bxe8 {[%emt 0:00:05]} Nf2+ {[%emt 0:00:04]} 30. Rxf2 {[%emt 0:00:08]} Bxf2 {[%emt 0:00:06]} 31. Qxg7+ {[%emt 0:00:18]} Qxg7 {[%emt 0:00:01]} 32. Nxg7 {[%emt 0:00:01]} Bg3 {[%emt 0:00:01]} 33. Bh5 {[%emt 0:00:07]} Kxg7 {[%emt 0:00:20]} 34. e6+ {[%emt 0:00:01]} Kf8 {[%emt 0:00:37]} 35. Bf6 {[%emt 0:00:02]} Re8 {[%emt 0:00:06]} 36. Bxe8 {[%emt 0:00:03]} Kxe8 {[%emt 0:00:01]} 37. h5 {[%emt 0:00:09]} b5 {[%emt 0:00:14]} 38. axb5 {[%emt 0:00:10]} axb5 {[%emt 0:00:02]} 1-0

[Event "FIDE Open World Rapid 2024"]
[Site "New York"]
[Date "2024.12.27"]
[Round "8.17"]
[White "Bologan, Victor"]
[Black "Suleymenov, Alisher"]
[Result "0-1"]
[ECO "B50"]
[WhiteElo "2600"]
[BlackElo "2500"]
[Annotator "ChessBase"]
[PlyCount "82"]
[EventDate "2024.12.14"]
[EventType "swiss"]
[EventCountry "USA"]
[SourceTitle "playchess.com"]
[Source "ChessBase"]
[SourceQuality "1"]
[TimeControl "900+10"]

1. e4 {[%emt 0:00:01]} c5 {[%emt 0:00:02]} 2. Nf3 {[%emt 0:00:01]} d6 {[%emt 0:00:02]} 3. c3 {[%emt 0:00:09]} Nf6 {[%emt 0:00:05]} 4. Bd3 {[%emt 0:00:01]} Nc6 {[%emt 0:00:26]} 5. Bc2 {[%emt 0:00:02]} Bg4 {[%emt 0:02:33]} 6. h3 {[%emt 0:00:11]} Bh5 {[%emt 0:01:10]} 7. d3 {[%emt 0:00:54]} e6 {[%emt 0:00:03]} 8. Nbd2 {[%emt 0:00:11]} Be7 {[%emt 0:00:03]} 9. Nf1 {[%emt 0:00:22]} O-O {[%emt 0:00:34]} 10. Ng3 {[%emt 0:00:11]} Bxf3 {[%emt 0:00:46]} 11. Qxf3 {[%emt 0:00:01]} d5 {[%emt 0:00:04]} 12. O-O {[%emt 0:00:18]} d4 {[%emt 0:00:25]} 13. Qe2 {[%emt 0:00:26]} b5 {[%emt 0:00:40]} 14. e5 {[%emt 0:00:34]} Nd5 {[%emt 0:00:42]} 15. c4 {[%emt 0:01:09]} Ndb4 {[%emt 0:00:01]} 16. Bb3 {[%emt 0:00:43]} Na5 {[%emt 0:00:15]} 17. Bd2 {[%emt 0:00:59]} bxc4 {[%emt 0:00:18]} 18. Bxc4 {[%emt 0:01:55]} Nxc4 {[%emt 0:00:23]} 19. dxc4 {[%emt 0:00:01]} a5 {[%emt 0:01:09]} 20. f4 {[%emt 0:00:38]} Ra6 {[%emt 0:00:53]} 21. Ne4 {[%emt 0:01:52]} Rb6 {[%emt 0:01:40]} 22. Bxb4 {[%emt 0:00:36]} Rxb4 {[%emt 0:00:42]} 23. b3 {[%emt 0:00:03]} a4 {[%emt 0:00:08]} 24. Rf3 {[%emt 0:00:08]} Qb6 {[%emt 0:01:50]} 25. Qc2 {[%emt 0:00:56]} Ra8 {[%emt 0:00:29]} 26. Rb1 {[%emt 0:00:23]} axb3 {[%emt 0:00:40]} 27. axb3 {[%emt 0:00:03]} g6 {[%emt 0:00:44]} 28. g4 {[%emt 0:00:47]} Qc7 {[%emt 0:00:07]} 29. Kg2 {[%emt 0:00:19]} Rb6 {[%emt 0:00:21]} 30. h4 {[%emt 0:00:29]} Rba6 {[%emt 0:00:06]} 31. h5 {[%emt 0:00:20]} Ra2 {[%emt 0:00:29]} 32. Rb2 {[%emt 0:00:02]} Rxb2 {[%emt 0:00:04]} 33. Qxb2 {[%emt 0:00:01]} Qb7 {[%emt 0:00:39]} 34. Qc2 {[%emt 0:00:20]} Ra1 {[%emt 0:00:09]} 35. h6 {[%emt 0:01:06]} Re1 {[%emt 0:00:10]} 36. Ng3 {[%emt 0:00:52]} Re3 {[%emt 0:00:46]} 37. Qd1 {[%emt 0:00:01]} Bh4 {[%emt 0:00:33]} 38. Nf1 {[%emt 0:00:20]} Rc3 {[%emt 0:00:13]} 39. Nd2 {[%emt 0:00:39]} g5 {[%emt 0:00:13]} 40. Kh3 {[%emt 0:00:13]} Be1 {[%emt 0:00:02]} 41. Rxc3 {[%emt 0:00:08]} Qh1# {[%emt 0:00:13]} 0-1

[Event "FIDE Open World Rapid 2024"]
[Site "New York"]
[Date "2024.12.28"]
[Round "8.18"]
[White "Vokhidov, Shamsiddin"]
[Black "Oro, Faustino"]
[Result "0-1"]
[ECO "C54"]
[WhiteElo "2681"]
[BlackElo "2433"]
[Annotator "ChessBase"]
[PlyCount "146"]
[EventDate "2024.12.14"]
[EventType "swiss"]
[EventCountry "USA"]
[SourceTitle "playchess.com"]
[Source "ChessBase"]
[SourceQuality "1"]
[TimeControl "900+10"]

1. e4 {[%emt 0:00:01]} e5 {[%emt 0:00:11]} 2. Nf3 {[%emt 0:00:01]} Nc6 {[%emt 0:00:01]} 3. Bc4 {[%emt 0:00:01]} Bc5 {[%emt 0:00:03]} 4. c3 {[%emt 0:00:01]} Nf6 {[%emt 0:00:01]} 5. d3 {[%emt 0:00:01]} O-O {[%emt 0:00:08]} 6. O-O {[%emt 0:00:04]} h6 {[%emt 0:00:01]} 7. Re1 {[%emt 0:00:20]} d6 {[%emt 0:00:03]} 8. Nbd2 {[%emt 0:00:12]} a5 {[%emt 0:00:02]} 9. h3 {[%emt 0:00:21]} Be6 {[%emt 0:00:14]} 10. Bb5 {[%emt 0:00:01]} Bb6 {[%emt 0:00:02]} 11. Nf1 {[%emt 0:00:17]} Ne7 {[%emt 0:00:49]} 12. d4 {[%emt 0:00:05]} exd4 {[%emt 0:01:12]} 13. cxd4 {[%emt 0:00:28]} d5 {[%emt 0:00:02]} 14. e5 {[%emt 0:00:01]} Ne4 {[%emt 0:00:01]} 15. N1d2 {[%emt 0:01:03]} c5 {[%emt 0:01:48]} 16. Nxe4 {[%emt 0:01:55]} dxe4 {[%emt 0:00:03]} 17. Rxe4 {[%emt 0:00:01]} cxd4 {[%emt 0:00:24]} 18. Bd3 {[%emt 0:00:21]} Nc6 {[%emt 0:01:01]} 19. a3 {[%emt 0:00:58]} Re8 {[%emt 0:00:50]} 20. Bf4 {[%emt 0:00:53]} Bd5 {[%emt 0:00:43]} 21. Re1 {[%emt 0:00:04]} Bc7 {[%emt 0:00:05]} 22. Bb5 {[%emt 0:00:26]} Re6 {[%emt 0:01:40]} 23. Bxc6 {[%emt 0:00:46]} bxc6 {[%emt 0:00:28]} 24. Nxd4 {[%emt 0:00:39]} Rg6 {[%emt 0:00:03]} 25. Bg3 {[%emt 0:00:45]} Bb6 {[%emt 0:00:14]} 26. Nf5 {[%emt 0:00:53]} Qg5 {[%emt 0:02:24]} 27. Qc2 {[%emt 0:00:52]} Be6 {[%emt 0:01:39]} 28. Ne3 {[%emt 0:00:06]} Bd4 {[%emt 0:01:08]} 29. Qxc6 {[%emt 0:01:27]} Rf8 {[%emt 0:00:42]} 30. Qb5 {[%emt 0:01:02]} h5 {[%emt 0:01:08]} 31. h4 {[%emt 0:00:20]} Qe7 {[%emt 0:00:00]} 32. Rad1 {[%emt 0:00:20]} Qa7 {[%emt 0:00:11]} 33. Qe2 {[%emt 0:00:15]} Rb8 {[%emt 0:00:17]} 34. Rd2 {[%emt 0:00:03]} Rb3 {[%emt 0:00:46]} 35. Kh2 {[%emt 0:00:20]} Rxg3 {[%emt 0:01:28]} 36. Kxg3 {[%emt 0:01:35]} Bg4 {[%emt 0:00:01]} 37. Rxd4 {[%emt 0:00:53]} Qxd4 {[%emt 0:00:26]} 38. f3 {[%emt 0:00:14]} Qxe5+ {[%emt 0:00:04]} 39. Kf2 {[%emt 0:00:01]} Rxb2 {[%emt 0:00:07]} 40. fxg4 {[%emt 0:02:19]} Rxe2+ {[%emt 0:00:02]} 41. Rxe2 {[%emt 0:00:01]} Qf4+ {[%emt 0:00:05]} 42. Kg1 {[%emt 0:00:12]} hxg4 {[%emt 0:00:02]} 43. Nf1 {[%emt 0:00:06]} g3 {[%emt 0:00:09]} 44. h5 {[%emt 0:00:02]} Qd4+ {[%emt 0:00:12]} 45. Kh1 {[%emt 0:00:02]} Qh4+ {[%emt 0:00:06]} 46. Kg1 {[%emt 0:00:01]} Qxh5 {[%emt 0:00:02]} 47. Re3 {[%emt 0:00:27]} Qc5 {[%emt 0:00:20]} 48. Kh1 {[%emt 0:00:01]} g6 {[%emt 0:00:10]} 49. Rxg3 {[%emt 0:00:02]} Kg7 {[%emt 0:00:06]} 50. Re3 {[%emt 0:00:16]} f5 {[%emt 0:00:12]} 51. g3 {[%emt 0:00:01]} Qc2 {[%emt 0:00:11]} 52. Kg1 {[%emt 0:00:10]} Kh6 {[%emt 0:00:02]} 53. Rf3 {[%emt 0:00:04]} Kg5 {[%emt 0:00:07]} 54. Kh1 {[%emt 0:00:08]} Kf6 {[%emt 0:00:36]} 55. Kg1 {[%emt 0:00:17]} Ke5 {[%emt 0:00:05]} 56. Re3+ {[%emt 0:00:13]} Kd4 {[%emt 0:00:17]} 57. Rf3 {[%emt 0:00:01]} Qb2 {[%emt 0:00:48]} 58. Nh2 {[%emt 0:00:38]} g5 {[%emt 0:00:27]} 59. g4 {[%emt 0:00:36]} fxg4 {[%emt 0:00:16]} 60. Nxg4 {[%emt 0:00:03]} Ke4 {[%emt 0:00:04]} 61. Rh3 {[%emt 0:00:18]} Kf4 {[%emt 0:00:13]} 62. Nf2 {[%emt 0:00:01]} Qc1+ {[%emt 0:00:04]} 63. Kg2 {[%emt 0:00:05]} Qc6+ {[%emt 0:00:03]} 64. Kh2 {[%emt 0:00:09]} g4 {[%emt 0:00:19]} 65. Rg3 {[%emt 0:00:04]} Qc2 {[%emt 0:00:19]} 66. Kg2 {[%emt 0:00:10]} Qc6+ {[%emt 0:00:01]} 67. Kh2 {[%emt 0:00:01]} Qb6 {[%emt 0:00:15]} 68. Kg2 {[%emt 0:00:27]} Qb7+ {[%emt 0:00:01]} 69. Kh2 {[%emt 0:00:02]} Qh7+ {[%emt 0:00:12]} 70. Kg2 {[%emt 0:00:01]} Qb7+ {[%emt 0:00:01]} 71. Kh2 {[%emt 0:00:01]} Qa8 {[%emt 0:00:27]} 72. Nxg4 {[%emt 0:00:05]} Qh8+ {[%emt 0:00:04]} 73. Kg2 {[%emt 0:00:03]} Qh4 {[%emt 0:00:04]} 0-1

[Event "FIDE Open World Rapid 2024"]
[Site "New York"]
[Date "2024.12.27"]
[Round "8.18"]
[White "Hong, Andrew"]
[Black "Bortnyk, Olexandr"]
[Result "1/2-1/2"]
[ECO "C41"]
[WhiteElo "2572"]
[BlackElo "2603"]
[Annotator "ChessBase"]
[PlyCount "72"]
[EventDate "2024.12.14"]
[EventType "swiss"]
[EventCountry "USA"]
[SourceTitle "playchess.com"]
[Source "ChessBase"]
[SourceQuality "1"]
[TimeControl "900+10"]

1. e4 {[%emt 0:00:20]} d6 {[%emt 0:00:10]} 2. d4 {[%emt 0:00:06]} Nf6 {[%emt 0:00:03]} 3. Nc3 {[%emt 0:00:09]} e5 {[%emt 0:00:03]} 4. Nf3 {[%emt 0:00:13]} Nbd7 {[%emt 0:00:02]} 5. Bc4 {[%emt 0:00:07]} Be7 {[%emt 0:00:02]} 6. O-O {[%emt 0:00:07]} O-O {[%emt 0:00:03]} 7. a4 {[%emt 0:00:11]} a6 {[%emt 0:00:01]} 8. Re1 {[%emt 0:01:14]} b6 {[%emt 0:00:09]} 9. Nd5 {[%emt 0:01:15]} Bb7 {[%emt 0:00:11]} 10. Nxe7+ {[%emt 0:00:44]} Qxe7 {[%emt 0:00:02]} 11. Bd3 {[%emt 0:00:01]} c5 {[%emt 0:01:25]} 12. c3 {[%emt 0:00:53]} Rfe8 {[%emt 0:00:41]} 13. d5 {[%emt 0:01:45]} Nf8 {[%emt 0:00:52]} 14. b4 {[%emt 0:01:35]} Ng6 {[%emt 0:00:16]} 15. bxc5 {[%emt 0:00:37]} bxc5 {[%emt 0:00:02]} 16. Rb1 {[%emt 0:00:51]} Reb8 {[%emt 0:00:19]} 17. Re2 {[%emt 0:01:22]} Bc8 {[%emt 0:00:27]} 18. Reb2 {[%emt 0:00:06]} Qc7 {[%emt 0:00:24]} 19. Nd2 {[%emt 0:01:00]} Rxb2 {[%emt 0:00:24]} 20. Rxb2 {[%emt 0:00:03]} Nf4 {[%emt 0:00:01]} 21. Bf1 {[%emt 0:00:09]} Bd7 {[%emt 0:02:03]} 22. Qb3 {[%emt 0:00:24]} h6 {[%emt 0:02:26]} 23. f3 {[%emt 0:01:10]} Ne8 {[%emt 0:00:15]} 24. Nc4 {[%emt 0:00:12]} Qd8 {[%emt 0:00:03]} 25. Nb6 {[%emt 0:00:57]} Ra7 {[%emt 0:00:49]} 26. Nxd7 {[%emt 0:00:36]} Qxd7 {[%emt 0:00:16]} 27. a5 {[%emt 0:01:36]} f5 {[%emt 0:00:54]} 28. Bxf4 {[%emt 0:00:29]} exf4 {[%emt 0:00:02]} 29. exf5 {[%emt 0:00:26]} Nf6 {[%emt 0:00:14]} 30. Qb6 {[%emt 0:00:26]} Kh7 {[%emt 0:00:06]} 31. Qc6 {[%emt 0:00:29]} Qd8 {[%emt 0:00:30]} 32. Rb6 {[%emt 0:00:12]} Qe7 {[%emt 0:00:07]} 33. Qxd6 {[%emt 0:00:27]} Qe3+ {[%emt 0:00:08]} 34. Kh1 {[%emt 0:00:01]} Qe1 {[%emt 0:03:18]} 35. Kg1 {[%emt 0:00:01]} Qe3+ {[%emt 0:00:18]} 36. Kh1 {[%emt 0:00:01]} Qe1 {[%emt 0:00:34]} 1/2-1/2

[Event "FIDE Open World Rapid 2024"]
[Site "New York"]
[Date "2024.12.27"]
[Round "8.19"]
[White "Lu, Shanglei"]
[Black "Makarian, Rudik"]
[Result "1-0"]
[ECO "C55"]
[WhiteElo "2609"]
[BlackElo "2547"]
[Annotator "ChessBase"]
[PlyCount "101"]
[EventDate "2024.12.14"]
[EventType "swiss"]
[EventCountry "USA"]
[SourceTitle "playchess.com"]
[Source "ChessBase"]
[SourceQuality "1"]
[TimeControl "900+10"]

1. e4 {[%emt 0:00:01]} e5 {[%emt 0:02:09]} 2. Nf3 {[%emt 0:00:02]} Nc6 {[%emt 0:00:01]} 3. Bc4 {[%emt 0:00:02]} Nf6 {[%emt 0:00:02]} 4. d3 {[%emt 0:00:01]} Be7 {[%emt 0:00:01]} 5. Nc3 {[%emt 0:00:44]} O-O {[%emt 0:00:08]} 6. O-O {[%emt 0:00:03]} d6 {[%emt 0:00:01]} 7. a3 {[%emt 0:00:01]} a5 {[%emt 0:00:06]} 8. h3 {[%emt 0:00:08]} Be6 {[%emt 0:00:48]} 9. Nd5 {[%emt 0:00:08]} a4 {[%emt 0:00:25]} 10. Re1 {[%emt 0:01:24]} h6 {[%emt 0:01:00]} 11. d4 {[%emt 0:01:02]} exd4 {[%emt 0:01:05]} 12. Nxd4 {[%emt 0:00:06]} Nxd4 {[%emt 0:00:41]} 13. Qxd4 {[%emt 0:00:03]} Nxd5 {[%emt 0:00:03]} 14. Bxd5 {[%emt 0:06:04]} c6 {[%emt 0:00:41]} 15. Bxe6 {[%emt 0:00:59]} fxe6 {[%emt 0:00:02]} 16. e5 {[%emt 0:00:07]} d5 {[%emt 0:02:27]} 17. Qg4 {[%emt 0:00:01]} Kh8 {[%emt 0:01:41]} 18. Qxe6 {[%emt 0:00:07]} Bc5 {[%emt 0:00:03]} 19. Be3 {[%emt 0:00:11]} d4 {[%emt 0:00:02]} 20. Red1 {[%emt 0:02:04]} Qh4 {[%emt 0:01:52]} 21. Qc4 {[%emt 0:00:22]} Ba7 {[%emt 0:00:46]} 22. c3 {[%emt 0:01:20]} b5 {[%emt 0:00:27]} 23. Rxd4 {[%emt 0:00:01]} Bxd4 {[%emt 0:01:34]} 24. Qxd4 {[%emt 0:00:00]} Qe7 {[%emt 0:01:40]} 25. Qe4 {[%emt 0:00:06]} Qe6 {[%emt 0:00:07]} 26. f4 {[%emt 0:00:02]} Rad8 {[%emt 0:00:05]} 27. Rf1 {[%emt 0:00:05]} Qd5 {[%emt 0:00:26]} 28. Qg6 {[%emt 0:00:48]} Qd3 {[%emt 0:00:02]} 29. Qxd3 {[%emt 0:00:03]} Rxd3 {[%emt 0:00:01]} 30. Kf2 {[%emt 0:01:39]} Rd5 {[%emt 0:00:15]} 31. Ke2 {[%emt 0:00:03]} g5 {[%emt 0:00:38]} 32. g3 {[%emt 0:00:06]} Kh7 {[%emt 0:00:06]} 33. Rc1 {[%emt 0:00:31]} c5 {[%emt 0:01:01]} 34. c4 {[%emt 0:00:45]} bxc4 {[%emt 0:00:01]} 35. Rxc4 {[%emt 0:00:00]} Rb8 {[%emt 0:00:01]} 36. Kf3 {[%emt 0:00:07]} gxf4 {[%emt 0:00:06]} 37. gxf4 {[%emt 0:00:02]} Rxb2 {[%emt 0:00:06]} 38. Ke4 {[%emt 0:00:09]} Rd1 {[%emt 0:00:18]} 39. Bxc5 {[%emt 0:00:04]} Kg6 {[%emt 0:00:25]} 40. f5+ {[%emt 0:00:14]} Kh5 {[%emt 0:00:00]} 41. e6 {[%emt 0:00:24]} Re1+ {[%emt 0:00:14]} 42. Kd5 {[%emt 0:00:56]} Rbe2 {[%emt 0:00:01]} 43. Rf4 {[%emt 0:01:04]} Kg5 {[%emt 0:00:20]} 44. Rf3 {[%emt 0:00:08]} Re5+ {[%emt 0:00:17]} 45. Kd6 {[%emt 0:00:02]} Rxf5 {[%emt 0:00:12]} 46. Be3+ {[%emt 0:00:02]} Kf6 {[%emt 0:00:07]} 47. Bd4+ {[%emt 0:00:08]} Kg6 {[%emt 0:00:07]} 48. Rg3+ {[%emt 0:00:20]} Kh5 {[%emt 0:00:01]} 49. e7 {[%emt 0:00:07]} Re4 {[%emt 0:00:16]} 50. Re3 {[%emt 0:00:06]} Rff4 {[%emt 0:00:14]} 51. Rxe4 {[%emt 0:00:04]} 1-0

[Event "FIDE Open World Rapid 2024"]
[Site "New York"]
[Date "2024.12.27"]
[Round "8.19"]
[White "Hardaway, Brewington"]
[Black "Kobalia, Mikhail"]
[Result "1-0"]
[ECO "B44"]
[WhiteElo "2499"]
[BlackElo "2543"]
[Annotator "ChessBase"]
[PlyCount "69"]
[EventDate "2024.12.14"]
[EventType "swiss"]
[EventCountry "USA"]
[SourceTitle "playchess.com"]
[Source "ChessBase"]
[SourceQuality "1"]
[TimeControl "900+10"]

1. e4 {[%emt 0:00:26]} c5 {[%emt 0:00:02]} 2. Nf3 {[%emt 0:00:15]} e6 {[%emt 0:00:01]} 3. d4 {[%emt 0:00:01]} cxd4 {[%emt 0:00:01]} 4. Nxd4 {[%emt 0:00:01]} Nc6 {[%emt 0:00:01]} 5. Bf4 {[%emt 0:00:01]} d6 {[%emt 0:00:20]} 6. Nxc6 {[%emt 0:00:02]} bxc6 {[%emt 0:00:02]} 7. c4 {[%emt 0:00:01]} Rb8 {[%emt 0:01:01]} 8. Qc2 {[%emt 0:00:01]} Ne7 {[%emt 0:01:49]} 9. Nc3 {[%emt 0:00:11]} Ng6 {[%emt 0:00:34]} 10. Be3 {[%emt 0:00:05]} c5 {[%emt 0:00:03]} 11. O-O-O {[%emt 0:00:16]} Qb6 {[%emt 0:00:13]} 12. f4 {[%emt 0:00:36]} Be7 {[%emt 0:00:28]} 13. g4 {[%emt 0:00:25]} Bf6 {[%emt 0:02:00]} 14. g5 {[%emt 0:03:11]} Bd4 {[%emt 0:00:01]} 15. Bxd4 {[%emt 0:01:13]} cxd4 {[%emt 0:00:01]} 16. Nb5 {[%emt 0:00:01]} a6 {[%emt 0:00:53]} 17. Nxd4 {[%emt 0:00:03]} Nxf4 {[%emt 0:00:04]} 18. h4 {[%emt 0:04:09]} O-O {[%emt 0:00:30]} 19. Rh2 {[%emt 0:00:14]} Bb7 {[%emt 0:01:04]} 20. Qf2 {[%emt 0:01:16]} Ng6 {[%emt 0:00:40]} 21. h5 {[%emt 0:02:58]} Ne5 {[%emt 0:00:02]} 22. Qh4 {[%emt 0:00:01]} Rfc8 {[%emt 0:01:05]} 23. Rc2 {[%emt 0:02:22]} d5 {[%emt 0:00:25]} 24. exd5 {[%emt 0:00:01]} exd5 {[%emt 0:00:00]} 25. Nf5 {[%emt 0:00:22]} Qe6 {[%emt 0:01:02]} 26. Bh3 {[%emt 0:00:01]} Qe8 {[%emt 0:03:14]} 27. Nd6 {[%emt 0:00:15]} Qa4 {[%emt 0:00:01]} 28. Bxc8 {[%emt 0:00:33]} Bxc8 {[%emt 0:00:45]} 29. Qf4 {[%emt 0:00:22]} Qxa2 {[%emt 0:00:19]} 30. Qxe5 {[%emt 0:00:05]} Bg4 {[%emt 0:00:01]} 31. Re1 {[%emt 0:00:06]} h6 {[%emt 0:00:42]} 32. gxh6 {[%emt 0:00:16]} gxh6 {[%emt 0:00:02]} 33. Ne8 {[%emt 0:00:29]} Qa1+ {[%emt 0:00:53]} 34. Kd2 {[%emt 0:00:02]} Qa5+ {[%emt 0:00:00]} 35. Qc3 {[%emt 0:00:00]} 1-0

[Event "FIDE Open World Rapid 2024"]
[Site "New York"]
[Date "2024.12.27"]
[Round "8.20"]
[White "Gelfand, Boris"]
[Black "Nogerbek, Kazybek"]
[Result "1-0"]
[ECO "E06"]
[WhiteElo "2657"]
[BlackElo "2527"]
[Annotator "ChessBase"]
[PlyCount "43"]
[EventDate "2024.12.14"]
[EventType "swiss"]
[EventCountry "USA"]
[SourceTitle "playchess.com"]
[Source "ChessBase"]
[SourceQuality "1"]
[TimeControl "900+10"]

1. d4 {[%emt 0:00:01]} Nf6 {[%emt 0:00:04]} 2. c4 {[%emt 0:00:02]} e6 {[%emt 0:00:01]} 3. Nf3 {[%emt 0:00:04]} d5 {[%emt 0:00:02]} 4. g3 {[%emt 0:00:01]} Be7 {[%emt 0:00:05]} 5. Bg2 {[%emt 0:00:01]} O-O {[%emt 0:00:03]} 6. Qc2 {[%emt 0:00:02]} c5 {[%emt 0:00:25]} 7. dxc5 {[%emt 0:00:01]} d4 {[%emt 0:01:28]} 8. b4 {[%emt 0:00:01]} a5 {[%emt 0:00:17]} 9. b5 {[%emt 0:00:01]} Bxc5 {[%emt 0:00:14]} 10. Nbd2 {[%emt 0:00:05]} Nbd7 {[%emt 0:00:29]} 11. Nb3 {[%emt 0:00:14]} Bb4+ {[%emt 0:01:06]} 12. Bd2 {[%emt 0:00:23]} Bxd2+ {[%emt 0:00:37]} 13. Nfxd2 {[%emt 0:00:34]} e5 {[%emt 0:00:38]} 14. a4 {[%emt 0:00:05]} Nb6 {[%emt 0:00:33]} 15. O-O {[%emt 0:00:52]} Bg4 {[%emt 0:02:25]} 16. Bxb7 {[%emt 0:03:42]} Bxe2 {[%emt 0:00:16]} 17. Bxa8 {[%emt 0:00:36]} Bxf1 {[%emt 0:00:29]} 18. Bh1 {[%emt 0:02:23]} Bh3 {[%emt 0:04:23]} 19. Nxa5 {[%emt 0:00:03]} Nbd5 {[%emt 0:01:06]} 20. Nc6 {[%emt 0:01:41]} Nc3 {[%emt 0:00:01]} 21. Ne4 {[%emt 0:01:31]} Nfxe4 {[%emt 0:00:11]} 22. Nxd8 {[%emt 0:00:02]} 1-0